[Event "44th Chess Olympiad Women 2022"]
[Site "Chennai"]
[Date "2022.08.01"]
[Round "4.62"]
[White "Henderson de La Fuente, Andrea"]
[Black "Nkwanyane Nolwazi"]
[Result "1-0"]
[WhiteElo "1962"]
[BlackElo "1158"]
[Annotator "NA RC"]
[PlyCount "131"]
[EventDate "2022.??.??"]
[TimeControl "60"]

1. e4 {[%emt 0:00:04]} e5 {[%emt 0:00:10]} 2. Nf3 {[%emt 0:00:13]} Nc6 {
[%emt 0:00:34]} 3. Bb5 {[%emt 0:00:13]} a6 {[%emt 0:00:21]} 4. Ba4 {[%emt 0:00:
00]} Nf6 {[%emt 0:00:36]} 5. d3 {[%emt 0:00:08]} b5 {[%emt 0:02:26]} 6. Bb3 {
[%emt 0:00:08]} Be7 {[%emt 0:02:38]} 7. O-O {[%emt 0:00:42]} O-O {[%emt 0:00:
00]} 8. Re1 {[%emt 0:05:54]} d5 {[%emt 0:01:49]} 9. exd5 {[%emt 0:02:50]} Nxd5
{[%emt 0:01:11]} 10. Nxe5 {[%emt 0:01:13]} Nxe5 {[%emt 0:00:41]} 11. Rxe5 {
[%emt 0:00:14]} c6 {[%emt 0:00:36]} 12. Bxd5 {[%emt 0:13:17]} cxd5 {[%emt 0:00:
00]} 13. Nc3 {[%emt 0:00:36]} Bb7 {[%emt 0:03:39]} 14. d4 {[%emt 0:04:02]} Bd6
{[%emt 0:09:56]} 15. Re3 {[%emt 0:09:31]} Qf6 {[%emt 0:08:21]} 16. Rh3 {
[%emt 0:11:14]} Rae8 {[%emt 0:04:50]} 17. Be3 {[%emt 0:01:26]} Qg6 {[%emt 0:00:
00]} 18. Qh5 {[%emt 0:22:13]} f5 {[%emt 0:32:00]} 19. Qxg6 {[%emt 0:05:45]}
hxg6 {[%emt 0:00:59]} 20. f4 {[%emt 0:00:39]} Re6 {[%emt 0:05:04]} 21. Rf3 {
[%emt 0:04:28]} Rfe8 {[%emt 0:00:12]} 22. Kf2 {[%emt 0:05:24]} Bc6 {[%emt 0:00:
00]} 23. Re1 {[%emt 0:00:52]} b4 {[%emt 0:00:53]} 24. Ne2 {[%emt 0:01:03]} Bb5
{[%emt 0:01:19]} 25. Nc1 {[%emt 0:02:33]} Rc8 {[%emt 0:00:30]} 26. c3 {[%emt 0:
00:00]} bxc3 {[%emt 0:00:11]} 27. bxc3 {[%emt 0:00:06]} Rxc3 {[%emt 0:00:18]}
28. Bd2 {[%emt 0:00:15]} Rxe1 {[%emt 0:00:28]} 29. Rxc3 {[%emt 0:01:33]} Rf1+ {
[%emt 0:00:33]} 30. Kg3 {[%emt 0:00:03]} Bc4 {[%emt 0:01:22]} 31. Rf3 {[%emt 0:
00:00]} Rd1 {[%emt 0:01:23]} 32. Rf2 {[%emt 0:00:33]} g5 {[%emt 0:00:24]} 33.
Nb3 {[%emt 0:00:29]} gxf4+ {[%emt 0:03:33]} 34. Bxf4 {[%emt 0:00:23]} Rd3+ {
[%emt 0:03:08]} 35. Rf3 {[%emt 0:00:13]} Bxf4+ {[%emt 0:03:40]} 36. Kxf4 {
[%emt 0:00:06]} g6 {[%emt 0:00:59]} 37. Rxd3 {[%emt 0:00:30]} Bxd3 {[%emt 0:00:
00]} 38. Nc5 {[%emt 0:00:41]} Bc4 {[%emt 0:01:24]} 39. a4 {[%emt 0:00:53]} a5 {
[%emt 0:01:01]} 40. Ke5 {[%emt 0:00:40]} Kg7 {[%emt 0:04:43]} 41. Nb7 {[%emt 0:
00:00]} Bb3 {[%emt 0:03:07]} 42. Nxa5 {[%emt 0:02:05]} Bxa4 {[%emt 0:01:43]}
43. Kxd5 {[%emt 0:00:12]} f4 {[%emt 0:00:28]} 44. Ke5 {[%emt 0:00:43]} g5 {
[%emt 0:00:17]} 45. Kf5 {[%emt 0:01:02]} Kh6 {[%emt 0:01:45]} 46. d5 {[%emt 0:
00:00]} Bd7+ {[%emt 0:01:01]} 47. Ke4 {[%emt 0:01:46]} Kh5 {[%emt 0:04:40]} 48.
Nc6 {[%emt 0:01:01]} Kh6 {[%emt 0:08:03]} 49. Ne5 {[%emt 0:01:09]} Ba4 {
[%emt 0:00:59]} 50. d6 {[%emt 0:00:47]} Bc2+ {[%emt 0:01:34]} 51. Kd4 {[%emt 0:
00:00]} Bf5 {[%emt 0:02:27]} 52. d7 {[%emt 0:00:28]} Bxd7 {[%emt 0:00:02]} 53.
Nxd7 {[%emt 0:00:06]} g4 {[%emt 0:01:26]} 54. Ne5 {[%emt 0:00:55]} Kg5 {
[%emt 0:00:56]} 55. Ke4 {[%emt 0:00:16]} f3 {[%emt 0:01:45]} 56. gxf3 {[%emt 0:
00:00]} gxf3 {[%emt 0:00:18]} 57. Nxf3+ {[%emt 0:00:04]} Kh5 {[%emt 0:00:05]}
58. Kf5 {[%emt 0:00:08]} Kh6 {[%emt 0:00:25]} 59. Kg4 {[%emt 0:00:36]} Kg6 {
[%emt 0:00:24]} 60. h4 {[%emt 0:00:07]} Kh6 {[%emt 0:00:24]} 61. Ne5 {[%emt 0:
00:00]} Kh7 {[%emt 0:00:51]} 62. Kg5 {[%emt 0:00:11]} Kg7 {[%emt 0:00:14]} 63.
h5 {[%emt 0:00:22]} Kh7 {[%emt 0:00:26]} 64. h6 {[%emt 0:00:28]} Kh8 {[%emt 0:
00:00]} 65. Kg6 {[%emt 0:00:10]} Kg8 {[%emt 0:00:11]} 66. h7+ {[%emt 0:00:17]}
1-0

[Event "44th Chess Olympiad Women 2022"]
[Site "Chennai"]
[Date "2022.08.01"]
[Round "4.62"]
[White "Nosimilo, Mkhonto"]
[Black "De la Riva Real, Ariadna"]
[Result "0-1"]
[WhiteElo "1313"]
[BlackElo "1649"]
[Annotator "NA RC"]
[PlyCount "77"]
[EventDate "2022.??.??"]
[TimeControl "60"]

1. e4 {[%emt 0:00:21]} c5 {[%emt 0:00:04]} 2. Nf3 {[%emt 0:00:29]} g6 {[%emt 0:
00:00]} 3. Be2 {[%emt 0:00:47]} Bg7 {[%emt 0:00:31]} 4. d3 {[%emt 0:00:56]} Nc6
{[%emt 0:01:33]} 5. c3 {[%emt 0:00:58]} d5 {[%emt 0:03:05]} 6. O-O {[%emt 0:00:
00]} Nf6 {[%emt 0:02:37]} 7. Re1 {[%emt 0:01:20]} O-O {[%emt 0:02:41]} 8. Nbd2
{[%emt 0:02:45]} Bg4 {[%emt 0:02:27]} 9. h3 {[%emt 0:00:38]} dxe4 {[%emt 0:00:
00]} 10. Nxe4 {[%emt 0:13:04]} Nxe4 {[%emt 0:04:21]} 11. hxg4 {[%emt 0:04:42]}
Nf6 {[%emt 0:02:29]} 12. g5 {[%emt 0:00:53]} Nd7 {[%emt 0:08:43]} 13. g3 {
[%emt 0:03:43]} e5 {[%emt 0:05:16]} 14. Kg2 {[%emt 0:03:11]} Re8 {[%emt 0:00:
00]} 15. Rh1 {[%emt 0:07:43]} e4 {[%emt 0:01:00]} 16. dxe4 {[%emt 0:01:20]}
Rxe4 {[%emt 0:00:13]} 17. Bd3 {[%emt 0:11:28]} Re6 {[%emt 0:03:27]} 18. Bc4 {
[%emt 0:11:38]} Re7 {[%emt 0:02:30]} 19. Rh2 {[%emt 0:11:09]} Nde5 {[%emt 0:00:
00]} 20. Qxd8+ {[%emt 0:10:09]} Rxd8 {[%emt 0:00:40]} 21. Bb3 {[%emt 0:04:50]}
Nxf3 {[%emt 0:03:26]} 22. Kxf3 {[%emt 0:00:19]} Ne5+ {[%emt 0:00:41]} 23. Kg2 {
[%emt 0:00:45]} c4 {[%emt 0:01:14]} 24. Bc2 {[%emt 0:02:20]} Ng4 {[%emt 0:00:
00]} 25. Rh4 {[%emt 0:01:02]} Re2 {[%emt 0:00:58]} 26. Rxg4 {[%emt 0:00:33]}
Rxc2 {[%emt 0:00:21]} 27. Be3 {[%emt 0:01:15]} Rxb2 {[%emt 0:03:48]} 28. Rxc4 {
[%emt 0:00:23]} Rc2 {[%emt 0:02:57]} 29. Bxa7 {[%emt 0:02:07]} b5 {[%emt 0:00:
00]} 30. Rc7 {[%emt 0:01:39]} b4 {[%emt 0:03:03]} 31. Rb1 {[%emt 0:01:13]} Rxc3
{[%emt 0:04:55]} 32. Rxc3 {[%emt 0:00:34]} bxc3 {[%emt 0:00:16]} 33. Be3 {
[%emt 0:00:27]} Rc8 {[%emt 0:01:40]} 34. Rc1 {[%emt 0:00:15]} c2 {[%emt 0:00:
00]} 35. Kf3 {[%emt 0:00:45]} Bb2 {[%emt 0:00:12]} 36. Rf1 {[%emt 0:00:31]}
c1=Q {[%emt 0:00:22]} 37. Bxc1 {[%emt 0:00:28]} Bxc1 {[%emt 0:00:11]} 38. Rd1 {
[%emt 0:00:17]} Bxg5 {[%emt 0:00:21]} 39. Re1 {[%emt 0:00:00]} 0-1

[Event "44th Chess Olympiad Women 2022"]
[Site "Chennai"]
[Date "2022.08.01"]
[Round "4.63"]
[White "Beekhy, Aamirah"]
[Black "Kaslan, Alexandra"]
[Result "0-1"]
[WhiteElo "1373"]
[BlackElo "1435"]
[Annotator "NA RC"]
[PlyCount "102"]
[EventDate "2022.??.??"]
[TimeControl "60"]

1. d4 {[%emt 0:00:03]} e6 {[%emt 0:00:16]} 2. Bf4 {[%emt 0:00:31]} Nf6 {
[%emt 0:00:36]} 3. Nf3 {[%emt 0:00:10]} c5 {[%emt 0:00:48]} 4. e3 {[%emt 0:00:
00]} Nc6 {[%emt 0:00:58]} 5. c3 {[%emt 0:03:18]} Qb6 {[%emt 0:01:45]} 6. Qc2 {
[%emt 0:18:25]} d5 {[%emt 0:01:22]} 7. Nbd2 {[%emt 0:01:33]} Be7 {[%emt 0:00:
00]} 8. h3 {[%emt 0:01:01]} Bd7 {[%emt 0:10:10]} 9. Qb3 {[%emt 0:07:35]} Na5 {
[%emt 0:08:12]} 10. Qxb6 {[%emt 0:03:37]} axb6 {[%emt 0:00:20]} 11. Be2 {
[%emt 0:02:33]} O-O {[%emt 0:02:23]} 12. O-O {[%emt 0:01:19]} Nc6 {[%emt 0:00:
00]} 13. Rfe1 {[%emt 0:05:28]} Rfc8 {[%emt 0:00:57]} 14. Bd3 {[%emt 0:03:14]}
Ne8 {[%emt 0:11:15]} 15. Ne5 {[%emt 0:06:16]} Nxe5 {[%emt 0:02:37]} 16. dxe5 {
[%emt 0:00:57]} Nc7 {[%emt 0:01:56]} 17. Nf3 {[%emt 0:02:00]} Bc6 {[%emt 0:00:
00]} 18. Be2 {[%emt 0:09:31]} b5 {[%emt 0:02:24]} 19. b3 {[%emt 0:02:01]} Ra7 {
[%emt 0:02:56]} 20. Red1 {[%emt 0:01:51]} Rca8 {[%emt 0:03:28]} 21. Rd2 {
[%emt 0:00:39]} Ra3 {[%emt 0:06:21]} 22. Bd1 {[%emt 0:07:26]} h6 {[%emt 0:00:
00]} 23. Bg3 {[%emt 0:01:32]} c4 {[%emt 0:06:02]} 24. Nd4 {[%emt 0:03:10]} Bc5
{[%emt 0:01:39]} 25. Nc2 {[%emt 0:04:54]} Rxa2 {[%emt 0:00:25]} 26. Rxa2 {
[%emt 0:02:45]} Rxa2 {[%emt 0:00:13]} 27. b4 {[%emt 0:04:11]} Be7 {[%emt 0:00:
00]} 28. f4 {[%emt 0:00:48]} Na6 {[%emt 0:03:04]} 29. Rf2 {[%emt 0:01:08]} Rb2
{[%emt 0:01:10]} 30. Nd4 {[%emt 0:03:37]} Rb1 {[%emt 0:00:43]} 31. Rf1 {
[%emt 0:00:36]} Rc1 {[%emt 0:00:55]} 32. Ne2 {[%emt 0:00:04]} Ra1 {[%emt 0:00:
00]} 33. Bf2 {[%emt 0:01:05]} Kf8 {[%emt 0:05:31]} 34. h4 {[%emt 0:00:16]} Ke8
{[%emt 0:01:44]} 35. g4 {[%emt 0:00:14]} Nxb4 {[%emt 0:06:06]} 36. cxb4 {
[%emt 0:00:58]} Bxb4 {[%emt 0:00:07]} 37. e4 {[%emt 0:01:33]} Be7 {[%emt 0:00:
00]} 38. exd5 {[%emt 0:00:39]} exd5 {[%emt 0:00:32]} 39. Bd4 {[%emt 0:00:47]}
Ra2 {[%emt 0:00:36]} 40. f5 {[%emt 0:00:45]} b4 {[%emt 0:00:42]} 41. f6 {
[%emt 0:30:31]} gxf6 {[%emt 0:30:14]} 42. exf6 {[%emt 0:00:08]} Bf8 {[%emt 0:
00:00]} 43. Re1 {[%emt 0:00:51]} Kd7 {[%emt 0:00:39]} 44. Nc1 {[%emt 0:00:00]}
Ra3 {[%emt 0:00:00]} 45. g5 {[%emt 0:00:00]} hxg5 {[%emt 0:00:00]} 46. Bg4+ {
[%emt 0:00:00]} Kd6 {[%emt 0:00:00]} 47. Be5+ {[%emt 0:00:00]} Kc5 {[%emt 0:00:
00]} 48. hxg5 {[%emt 0:00:00]} d4 {[%emt 0:00:00]} 49. Ne2 {[%emt 0:00:00]} d3
{[%emt 0:00:00]} 50. Nf4 {[%emt 0:00:00]} d2 {[%emt 0:00:00]} 51. Rd1 {[%emt 0:
00:00]} Rg3+ {[%emt 0:00:00]} 0-1

[Event "44th Chess Olympiad Women 2022"]
[Site "Chennai"]
[Date "2022.08.01"]
[Round "4.63"]
[White "Wijnhard, Joelle"]
[Black "Acham, Meritza"]
[Result "0-1"]
[WhiteElo "1291"]
[BlackElo "1397"]
[Annotator "NA RC"]
[PlyCount "144"]
[EventDate "2022.??.??"]
[TimeControl "60"]

1. e4 {[%emt 0:00:04]} c5 {[%emt 0:00:08]} 2. Nf3 {[%emt 0:00:19]} d6 {[%emt 0:
00:00]} 3. Nc3 {[%emt 0:00:41]} Nf6 {[%emt 0:00:13]} 4. Bc4 {[%emt 0:01:24]} e6
{[%emt 0:00:35]} 5. d3 {[%emt 0:02:02]} Be7 {[%emt 0:01:01]} 6. O-O {[%emt 0:
00:00]} O-O {[%emt 0:00:18]} 7. h3 {[%emt 0:04:26]} a6 {[%emt 0:00:16]} 8. a3 {
[%emt 0:00:37]} Nc6 {[%emt 0:00:14]} 9. Bf4 {[%emt 0:10:28]} b5 {[%emt 0:01:01]
} 10. Ba2 {[%emt 0:01:44]} Bb7 {[%emt 0:05:06]} 11. Re1 {[%emt 0:04:01]} Re8 {
[%emt 0:12:40]} 12. Rc1 {[%emt 0:05:42]} Bf8 {[%emt 0:02:41]} 13. Qd2 {[%emt 0:
00:00]} Ne7 {[%emt 0:01:14]} 14. Bg5 {[%emt 0:04:18]} Ng6 {[%emt 0:01:42]} 15.
Bxf6 {[%emt 0:06:47]} Qxf6 {[%emt 0:00:51]} 16. Qg5 {[%emt 0:01:56]} Be7 {
[%emt 0:02:48]} 17. Qxf6 {[%emt 0:01:03]} Bxf6 {[%emt 0:00:10]} 18. Rb1 {
[%emt 0:01:20]} Rad8 {[%emt 0:01:08]} 19. Kf1 {[%emt 0:09:07]} Ne7 {[%emt 0:00:
00]} 20. e5 {[%emt 0:09:43]} dxe5 {[%emt 0:01:15]} 21. Nxe5 {[%emt 0:00:19]}
Nc6 {[%emt 0:01:05]} 22. Nxc6 {[%emt 0:00:41]} Bxc6 {[%emt 0:00:10]} 23. Ne4 {
[%emt 0:00:21]} Bxe4 {[%emt 0:01:06]} 24. Rxe4 {[%emt 0:00:27]} Rd6 {[%emt 0:
00:00]} 25. Re2 {[%emt 0:03:08]} Red8 {[%emt 0:02:00]} 26. Ke1 {[%emt 0:05:55]}
g6 {[%emt 0:03:08]} 27. b3 {[%emt 0:02:41]} Bc3+ {[%emt 0:00:26]} 28. Kf1 {
[%emt 0:00:31]} b4 {[%emt 0:00:56]} 29. a4 {[%emt 0:00:39]} e5 {[%emt 0:01:39]}
30. Rd1 {[%emt 0:04:28]} f5 {[%emt 0:00:34]} 31. f3 {[%emt 0:01:29]} Kf7 {
[%emt 0:00:27]} 32. g3 {[%emt 0:02:01]} Kf6 {[%emt 0:00:54]} 33. Kg2 {[%emt 0:
00:00]} Rd4 {[%emt 0:00:35]} 34. Rf1 {[%emt 0:01:07]} h5 {[%emt 0:01:10]} 35.
h4 {[%emt 0:01:05]} R4d6 {[%emt 0:00:30]} 36. Kh3 {[%emt 0:01:59]} Rg8 {
[%emt 0:04:08]} 37. Rff2 {[%emt 0:01:26]} Rd4 {[%emt 0:00:40]} 38. Rf1 {
[%emt 0:01:45]} g5 {[%emt 0:01:35]} 39. hxg5+ {[%emt 0:00:45]} Rxg5 {[%emt 0:
00:00]} 40. f4 {[%emt 0:02:55]} exf4 {[%emt 0:01:41]} 41. gxf4 {[%emt 0:30:18]}
Rg4 {[%emt 0:31:09]} 42. Ref2 {[%emt 0:00:00]} Rd8 {[%emt 0:00:00]} 43. Re2 {
[%emt 0:00:00]} Rdg8 {[%emt 0:00:00]} 44. Re3 {[%emt 0:00:00]} Rg2 {[%emt 0:00:
00]} 45. Bb1 {[%emt 0:00:00]} h4 {[%emt 0:00:00]} 46. Ref3 {[%emt 0:00:00]}
R2g4 {[%emt 0:00:00]} 47. Re3 {[%emt 0:00:00]} Rd8 {[%emt 0:00:00]} 48. Re2 {
[%emt 0:00:00]} Rd4 {[%emt 0:00:00]} 49. Ref2 {[%emt 0:00:00]} Kg6 {[%emt 0:00:
00]} 50. Rf3 {[%emt 0:00:00]} Bd2 {[%emt 0:00:00]} 51. R1f2 {[%emt 0:00:00]}
Bxf4 {[%emt 0:00:00]} 52. Re2 {[%emt 0:00:00]} Kf6 {[%emt 0:00:00]} 53. Ref2 {
[%emt 0:00:42]} Kg5 {[%emt 0:00:00]} 54. Re2 {[%emt 0:00:46]} Rg1 {[%emt 0:00:
00]} 55. Rg2+ {[%emt 0:00:47]} Rxg2 {[%emt 0:00:00]} 56. Kxg2 {[%emt 0:00:05]}
Kg4 {[%emt 0:00:00]} 57. Rf2 {[%emt 0:00:57]} h3+ {[%emt 0:00:00]} 58. Kh1 {
[%emt 0:00:13]} Be3 {[%emt 0:00:00]} 59. Re2 {[%emt 0:00:33]} f4 {[%emt 0:00:
00]} 60. Kh2 {[%emt 0:01:23]} Rd8 {[%emt 0:00:00]} 61. Re1 {[%emt 0:01:29]} Kf3
{[%emt 0:00:00]} 62. Rf1+ {[%emt 0:01:12]} Bf2 {[%emt 0:00:00]} 63. Rd1 {
[%emt 0:01:49]} Bg3+ {[%emt 0:00:00]} 64. Kh1 {[%emt 0:00:24]} Ke2 {[%emt 0:00:
00]} 65. Rg1 {[%emt 0:00:39]} Rg8 {[%emt 0:00:00]} 66. Ba2 {[%emt 0:00:38]} f3
{[%emt 0:00:00]} 67. Rc1 {[%emt 0:00:28]} f2 {[%emt 0:00:00]} 68. a5 {[%emt 0:
00:00]} f1=Q+ {[%emt 0:00:28]} 69. Rxf1 {[%emt 0:00:12]} Kxf1 {[%emt 0:00:00]}
70. Bb1 {[%emt 0:00:08]} Rf8 {[%emt 0:00:00]} 71. d4 {[%emt 0:00:27]} Ke2 {
[%emt 0:00:00]} 72. dxc5 {[%emt 0:00:06]} Rf1# {[%emt 0:00:00]} 0-1

[Event "44th Chess Olympiad Women 2022"]
[Site "Chennai"]
[Date "2022.08.01"]
[Round "4.64"]
[White "Cadeau, Merisena"]
[Black "Callender, Jessica"]
[Result "1-0"]
[WhiteElo "1439"]
[BlackElo "1295"]
[Annotator "NA RC"]
[PlyCount "29"]
[EventDate "2022.??.??"]
[TimeControl "60"]

1. e4 {[%emt 0:00:02]} d6 {[%emt 0:00:06]} 2. d4 {[%emt 0:00:36]} g6 {[%emt 0:
00:00]} 3. Nf3 {[%emt 0:00:46]} Nf6 {[%emt 0:01:00]} 4. Nc3 {[%emt 0:00:21]}
Bg7 {[%emt 0:00:14]} 5. Bc4 {[%emt 0:01:05]} O-O {[%emt 0:01:49]} 6. O-O {
[%emt 0:00:43]} Nbd7 {[%emt 0:02:07]} 7. Bf4 {[%emt 0:00:23]} h6 {[%emt 0:00:
00]} 8. h3 {[%emt 0:00:42]} Re8 {[%emt 0:07:45]} 9. e5 {[%emt 0:00:28]} Nh7 {
[%emt 0:17:21]} 10. Qd3 {[%emt 0:03:10]} Nhf8 {[%emt 0:08:08]} 11. Rfe1 {
[%emt 0:01:41]} Ne6 {[%emt 0:04:36]} 12. Bxe6 {[%emt 0:00:37]} fxe6 {[%emt 0:
00:00]} 13. Qxg6 {[%emt 0:00:33]} Nf8 {[%emt 0:02:04]} 14. Qg4 {[%emt 0:00:33]}
Nh7 {[%emt 0:12:30]} 15. Bxh6 {[%emt 0:00:41]} 1-0

[Event "44th Chess Olympiad Women 2022"]
[Site "Chennai"]
[Date "2022.08.01"]
[Round "4.64"]
[White "Johnson, Nellisha"]
[Black "Jonet, Davena"]
[Result "0-1"]
[WhiteElo "1093"]
[BlackElo "1458"]
[Annotator "NA RC"]
[PlyCount "110"]
[EventDate "2022.??.??"]
[TimeControl "60"]

1. e4 {[%emt 0:00:04]} d5 {[%emt 0:00:09]} 2. exd5 {[%emt 0:00:18]} Qxd5 {
[%emt 0:00:16]} 3. Nc3 {[%emt 0:00:33]} Qd8 {[%emt 0:00:25]} 4. d4 {[%emt 0:00:
00]} Bf5 {[%emt 0:00:32]} 5. Nf3 {[%emt 0:00:35]} Nf6 {[%emt 0:00:55]} 6. Bd3 {
[%emt 0:02:03]} Bxd3 {[%emt 0:01:28]} 7. Qxd3 {[%emt 0:00:23]} c6 {[%emt 0:00:
00]} 8. O-O {[%emt 0:00:35]} e6 {[%emt 0:01:30]} 9. Bf4 {[%emt 0:01:21]} Bd6 {
[%emt 0:01:00]} 10. Bxd6 {[%emt 0:01:30]} Qxd6 {[%emt 0:00:32]} 11. h3 {
[%emt 0:02:12]} O-O {[%emt 0:00:32]} 12. Rae1 {[%emt 0:02:27]} Rd8 {[%emt 0:00:
00]} 13. Ne4 {[%emt 0:02:39]} Nxe4 {[%emt 0:01:54]} 14. Rxe4 {[%emt 0:00:39]}
Nd7 {[%emt 0:01:45]} 15. c3 {[%emt 0:01:42]} Nc5 {[%emt 0:02:20]} 16. Qc2 {
[%emt 0:02:32]} Nxe4 {[%emt 0:00:20]} 17. Qxe4 {[%emt 0:00:11]} Qd5 {[%emt 0:
00:00]} 18. Qb1 {[%emt 0:02:24]} h6 {[%emt 0:02:50]} 19. Rd1 {[%emt 0:06:35]}
c5 {[%emt 0:01:10]} 20. b3 {[%emt 0:05:54]} b6 {[%emt 0:02:10]} 21. c4 {
[%emt 0:05:21]} Qd6 {[%emt 0:04:48]} 22. Qb2 {[%emt 0:04:18]} cxd4 {[%emt 0:00:
00]} 23. Rxd4 {[%emt 0:01:37]} Qc7 {[%emt 0:00:41]} 24. Rxd8+ {[%emt 0:10:26]}
Rxd8 {[%emt 0:00:36]} 25. g3 {[%emt 0:00:05]} Rd1+ {[%emt 0:04:45]} 26. Kh2 {
[%emt 0:08:42]} Qd6 {[%emt 0:03:07]} 27. Qe2 {[%emt 0:04:05]} f6 {[%emt 0:00:
00]} 28. Nh4 {[%emt 0:12:05]} Kf7 {[%emt 0:06:27]} 29. Qf3 {[%emt 0:03:24]} Rd3
{[%emt 0:07:12]} 30. Qh5+ {[%emt 0:01:22]} Kf8 {[%emt 0:04:43]} 31. Ng6+ {
[%emt 0:02:19]} Kg8 {[%emt 0:00:59]} 32. Nf4 {[%emt 0:01:07]} Kf8 {[%emt 0:00:
00]} 33. Ng6+ {[%emt 0:01:35]} Kg8 {[%emt 0:05:07]} 34. Nf4 {[%emt 0:00:07]}
Rd2 {[%emt 0:01:34]} 35. Qe8+ {[%emt 0:01:07]} Qf8 {[%emt 0:00:31]} 36. Qxe6+ {
[%emt 0:00:32]} Qf7 {[%emt 0:00:17]} 37. Qc8+ {[%emt 0:01:09]} Kh7 {[%emt 0:00:
00]} 38. Kg2 {[%emt 0:03:08]} Rxa2 {[%emt 0:03:49]} 39. Qf5+ {[%emt 0:00:33]}
g6 {[%emt 0:02:12]} 40. Qd3 {[%emt 0:00:20]} f5 {[%emt 0:03:46]} 41. Nd5 {
[%emt 0:32:29]} Qe6 {[%emt 0:31:13]} 42. Kf3 {[%emt 0:02:35]} Qe4+ {[%emt 0:00:
00]} 43. Qxe4 {[%emt 0:00:44]} fxe4+ {[%emt 0:00:20]} 44. Kxe4 {[%emt 0:00:10]}
Rxf2 {[%emt 0:00:11]} 45. h4 {[%emt 0:00:53]} Kg7 {[%emt 0:00:50]} 46. b4 {
[%emt 0:01:13]} Rc2 {[%emt 0:01:27]} 47. Kd4 {[%emt 0:00:48]} Rg2 {[%emt 0:00:
00]} 48. Ne3 {[%emt 0:00:28]} Rxg3 {[%emt 0:00:00]} 49. h5 {[%emt 0:00:30]}
Rxe3 {[%emt 0:01:43]} 50. Kxe3 {[%emt 0:00:17]} gxh5 {[%emt 0:00:37]} 51. c5 {
[%emt 0:01:17]} bxc5 {[%emt 0:00:47]} 52. bxc5 {[%emt 0:00:07]} Kf7 {[%emt 0:
00:00]} 53. Kd4 {[%emt 0:00:53]} Ke7 {[%emt 0:00:29]} 54. Kd5 {[%emt 0:00:19]}
Kd7 {[%emt 0:00:12]} 55. Kd4 {[%emt 0:01:21]} a5 {[%emt 0:00:09]} 0-1

[Event "44th Chess Olympiad Women 2022"]
[Site "Chennai"]
[Date "2022.08.01"]
[Round "4.64"]
[White "Lam, Pooja"]
[Black "Seine, Rose Berline"]
[Result "0-1"]
[WhiteElo "1163"]
[BlackElo "1679"]
[Annotator "NA RC"]
[PlyCount "60"]
[EventDate "2022.??.??"]
[TimeControl "60"]

1. d4 {[%emt 0:00:04]} d5 {[%emt 0:00:04]} 2. c4 {[%emt 0:00:07]} e6 {[%emt 0:
00:00]} 3. Nc3 {[%emt 0:00:08]} Nf6 {[%emt 0:00:06]} 4. Bg5 {[%emt 0:00:07]}
Be7 {[%emt 0:00:35]} 5. Nf3 {[%emt 0:01:08]} O-O {[%emt 0:00:57]} 6. e3 {
[%emt 0:00:50]} Nbd7 {[%emt 0:00:32]} 7. cxd5 {[%emt 0:01:38]} exd5 {[%emt 0:
00:00]} 8. Bd3 {[%emt 0:01:58]} c6 {[%emt 0:00:37]} 9. O-O {[%emt 0:00:34]} h6
{[%emt 0:00:14]} 10. Bh4 {[%emt 0:00:13]} Re8 {[%emt 0:00:46]} 11. Qc2 {
[%emt 0:01:36]} Ne4 {[%emt 0:09:32]} 12. Bxe7 {[%emt 0:03:38]} Qxe7 {[%emt 0:
00:00]} 13. Nd2 {[%emt 0:00:48]} f5 {[%emt 0:02:37]} 14. Rae1 {[%emt 0:01:22]}
Ndf6 {[%emt 0:01:21]} 15. f3 {[%emt 0:01:21]} Nd6 {[%emt 0:02:13]} 16. Re2 {
[%emt 0:02:34]} Be6 {[%emt 0:05:55]} 17. Rfe1 {[%emt 0:03:55]} Qd7 {[%emt 0:00:
00]} 18. e4 {[%emt 0:01:18]} fxe4 {[%emt 0:00:11]} 19. fxe4 {[%emt 0:00:17]}
dxe4 {[%emt 0:00:12]} 20. Ndxe4 {[%emt 0:00:19]} Ndxe4 {[%emt 0:05:04]} 21.
Nxe4 {[%emt 0:00:41]} Qxd4+ {[%emt 0:11:43]} 22. Kh1 {[%emt 0:00:26]} Nd5 {
[%emt 0:08:13]} 23. Nc5 {[%emt 0:13:36]} Bf7 {[%emt 0:00:51]} 24. h3 {[%emt 0:
00:00]} Rxe2 {[%emt 0:08:59]} 25. Rxe2 {[%emt 0:01:38]} Nb4 {[%emt 0:00:20]}
26. Qc3 {[%emt 0:01:47]} Qxc3 {[%emt 0:01:12]} 27. bxc3 {[%emt 0:00:12]} Nxd3 {
[%emt 0:00:09]} 28. Nxd3 {[%emt 0:00:21]} Bc4 {[%emt 0:00:03]} 29. Re3 {
[%emt 0:00:24]} Bxa2 {[%emt 0:00:03]} 30. Nc5 {[%emt 0:01:22]} b5 {[%emt 0:00:
00]} 0-1

[Event "44th Chess Olympiad Women 2022"]
[Site "Chennai"]
[Date "2022.08.01"]
[Round "4.64"]
[White "Paul, Theophane"]
[Black "Shariff, Sasha Christina"]
[Result "0-1"]
[WhiteElo "1493"]
[BlackElo "1183"]
[Annotator "NA RC"]
[PlyCount "92"]
[EventDate "2022.??.??"]
[TimeControl "60"]

1. d4 {[%emt 0:00:03]} d5 {[%emt 0:00:06]} 2. e3 {[%emt 0:00:07]} Bf5 {[%emt 0:
00:00]} 3. c3 {[%emt 0:00:42]} Nf6 {[%emt 0:00:39]} 4. Qb3 {[%emt 0:00:25]} b6
{[%emt 0:03:17]} 5. Nd2 {[%emt 0:01:53]} e6 {[%emt 0:00:59]} 6. f4 {[%emt 0:00:
00]} Be7 {[%emt 0:00:53]} 7. Ngf3 {[%emt 0:02:14]} O-O {[%emt 0:00:15]} 8. Be2
{[%emt 0:02:23]} c5 {[%emt 0:03:46]} 9. c4 {[%emt 0:04:04]} Nc6 {[%emt 0:07:45]
} 10. Qc3 {[%emt 0:06:39]} Nb4 {[%emt 0:02:06]} 11. O-O {[%emt 0:03:00]} Rb8 {
[%emt 0:05:59]} 12. Ne5 {[%emt 0:05:20]} Qc7 {[%emt 0:09:01]} 13. a3 {[%emt 0:
00:00]} Nc6 {[%emt 0:05:04]} 14. Bf3 {[%emt 0:02:44]} Qd6 {[%emt 0:06:00]} 15.
b3 {[%emt 0:12:46]} Nd7 {[%emt 0:01:25]} 16. g4 {[%emt 0:07:11]} Bg6 {[%emt 0:
00:00]} 17. Nxg6 {[%emt 0:01:33]} hxg6 {[%emt 0:02:09]} 18. Be2 {[%emt 0:02:35]
} cxd4 {[%emt 0:02:27]} 19. exd4 {[%emt 0:01:16]} Bf6 {[%emt 0:01:45]} 20. Nf3
{[%emt 0:02:24]} dxc4 {[%emt 0:01:39]} 21. Ne5 {[%emt 0:08:04]} Ndxe5 {[%emt 0:
00:00]} 22. dxe5 {[%emt 0:01:25]} Qd4+ {[%emt 0:01:14]} 23. Qxd4 {[%emt 0:00:
00]} Nxd4 {[%emt 0:00:16]} 24. Bxc4 {[%emt 0:02:56]} Be7 {[%emt 0:00:57]} 25.
Bb2 {[%emt 0:01:35]} Nc2 {[%emt 0:01:46]} 26. Rab1 {[%emt 0:07:03]} Ne3 {
[%emt 0:00:40]} 27. Rf3 {[%emt 0:03:09]} Nxc4 {[%emt 0:01:23]} 28. bxc4 {
[%emt 0:00:23]} Rfc8 {[%emt 0:01:04]} 29. Rc1 {[%emt 0:02:15]} Rc6 {[%emt 0:00:
00]} 30. Rfc3 {[%emt 0:04:43]} Rbc8 {[%emt 0:00:07]} 31. Kf2 {[%emt 0:00:52]}
Bc5+ {[%emt 0:01:08]} 32. Kf3 {[%emt 0:00:19]} Bd4 {[%emt 0:00:22]} 33. R3c2 {
[%emt 0:00:31]} Bxb2 {[%emt 0:00:15]} 34. Rxb2 {[%emt 0:00:16]} Rxc4 {[%emt 0:
00:00]} 35. Rxc4 {[%emt 0:01:43]} Rxc4 {[%emt 0:00:05]} 36. Rb3 {[%emt 0:00:37]
} f6 {[%emt 0:03:17]} 37. exf6 {[%emt 0:01:17]} gxf6 {[%emt 0:00:13]} 38. Rd3 {
[%emt 0:01:03]} Kf8 {[%emt 0:00:28]} 39. h4 {[%emt 0:02:23]} f5 {[%emt 0:04:09]
} 40. g5 {[%emt 0:02:50]} e5 {[%emt 0:02:01]} 41. fxe5 {[%emt 0:32:30]} Rxh4 {
[%emt 0:30:17]} 42. Ke2 {[%emt 0:01:55]} Re4+ {[%emt 0:00:14]} 43. Re3 {
[%emt 0:00:21]} Rxe3+ {[%emt 0:00:06]} 44. Kxe3 {[%emt 0:00:09]} Ke7 {[%emt 0:
00:00]} 45. Kd4 {[%emt 0:01:08]} Ke6 {[%emt 0:00:09]} 46. a4 {[%emt 0:00:00]}
a6 {[%emt 0:00:00]} 0-1